[Event "Titled Tuesday Blitz September 27 Early 2022"]
[White "Petrosyan, Manuel"]
[Black "Urazayev, Arystanbek"]
[WhiteFideId "13300857"]
[BlackFideId "13709810"]
[WhiteElo "2592"]
[BlackElo "2441"]
[Result "1-0"]
[Round "08"]
[TimeControl "180+1"]
[Date "2022.09.27"]
[WhiteClock "0:00:05"]
[BlackClock "0:00:06"]

1. d4 {[%clk 0:03:00]}  Nf6 {[%clk 0:03:00]} 2. Nf3 {[%clk 0:03:01]}  e6 {[%clk 0:03:00]} 3. c4 {[%clk 0:03:01]}  d5 {[%clk 0:03:01]} 4. Nc3 {[%clk 0:03:02]}  c6 {[%clk 0:03:01]} 5. Bg5 {[%clk 0:03:02]}  h6 {[%clk 0:03:00]} 6. Bxf6 {[%clk 0:03:02]}  Qxf6 {[%clk 0:03:00]} 7. e3 {[%clk 0:03:03]}  Nd7 {[%clk 0:03:00]} 8. Be2 {[%clk 0:03:04]}  dxc4 {[%clk 0:03:01]} 9. O-O {[%clk 0:03:01]}  Bd6 {[%clk 0:03:00]} 10. Ne4 {[%clk 0:02:55]}  Qe7 {[%clk 0:03:01]} 11. Nxd6+ {[%clk 0:02:55]}  Qxd6 {[%clk 0:03:01]} 12. Bxc4 {[%clk 0:02:56]}  O-O {[%clk 0:02:48]} 13. Rc1 {[%clk 0:02:45]}  Qe7 {[%clk 0:02:34]} 14. Bb3 {[%clk 0:02:28]}  Rd8 {[%clk 0:02:10]} 15. Qc2 {[%clk 0:02:26]}  e5 {[%clk 0:02:07]} 16. Qe4 {[%clk 0:02:12]}  Re8 {[%clk 0:01:59]} 17. Bc2 {[%clk 0:01:59]}  Nf6 {[%clk 0:01:47]} 18. Qxe5 {[%clk 0:01:55]}  Qb4 {[%clk 0:01:47]} 19. Qc5 {[%clk 0:01:48]}  Qxb2 {[%clk 0:01:48]} 20. Bb3 {[%clk 0:01:25]}  Ne4 {[%clk 0:01:39]} 21. Qb4 {[%clk 0:01:16]}  Be6 {[%clk 0:01:36]} 22. Rc2 {[%clk 0:01:10]}  a5 {[%clk 0:01:31]} 23. Qxb7 {[%clk 0:00:53]}  Qa3 {[%clk 0:01:31]} 24. Bxe6 {[%clk 0:00:52]}  fxe6 {[%clk 0:01:30]} 25. Qxc6 {[%clk 0:00:51]}  Nd6 {[%clk 0:01:29]} 26. Qc5 {[%clk 0:00:43]}  Qb4 {[%clk 0:01:26]} 27. a3 {[%clk 0:00:37]}  Qb8 {[%clk 0:01:22]} 28. Qe5 {[%clk 0:00:36]}  Qb3 {[%clk 0:01:21]} 29. Rc7 {[%clk 0:00:34]}  Nf7 {[%clk 0:01:21]} 30. Qh5 {[%clk 0:00:32]}  Rf8 {[%clk 0:01:21]} 31. Ne5 {[%clk 0:00:30]}  Nxe5 {[%clk 0:01:17]} 32. Qxe5 {[%clk 0:00:31]}  Rf7 {[%clk 0:01:17]} 33. Rxf7 {[%clk 0:00:30]}  Kxf7 {[%clk 0:01:18]} 34. Rc1 {[%clk 0:00:30]}  Kg8 {[%clk 0:01:15]} 35. h4 {[%clk 0:00:27]}  Qxa3 {[%clk 0:01:14]} 36. Qxe6+ {[%clk 0:00:24]}  Kh8 {[%clk 0:01:15]} 37. Rc8+ {[%clk 0:00:19]}  Rxc8 {[%clk 0:01:14]} 38. Qxc8+ {[%clk 0:00:20]}  Kh7 {[%clk 0:01:15]} 39. Qf5+ {[%clk 0:00:19]}  Kh8 {[%clk 0:01:15]} 40. d5 {[%clk 0:00:18]}  a4 {[%clk 0:01:14]} 41. Qc8+ {[%clk 0:00:16]}  Kh7 {[%clk 0:01:14]} 42. Qc2+ {[%clk 0:00:16]}  Kg8 {[%clk 0:01:11]} 43. d6 {[%clk 0:00:15]}  Qa1+ {[%clk 0:00:44]} 44. Kh2 {[%clk 0:00:14]}  Qe5+ {[%clk 0:00:43]} 45. g3 {[%clk 0:00:14]}  Qxd6 {[%clk 0:00:17]} 46. Qxa4 {[%clk 0:00:13]}  Kh8 {[%clk 0:00:17]} 47. Qf4 {[%clk 0:00:13]}  Qd1 {[%clk 0:00:17]} 48. Kg2 {[%clk 0:00:13]}  Kh7 {[%clk 0:00:17]} 49. Qf3 {[%clk 0:00:13]}  Qe1 {[%clk 0:00:17]} 50. e4 {[%clk 0:00:14]}  Kh8 {[%clk 0:00:17]} 51. Qf8+ {[%clk 0:00:13]}  Kh7 {[%clk 0:00:18]} 52. Qf5+ {[%clk 0:00:14]}  Kg8 {[%clk 0:00:17]} 53. e5 {[%clk 0:00:15]}  Qa5 {[%clk 0:00:17]} 54. Qe4 {[%clk 0:00:13]}  Kf7 {[%clk 0:00:16]} 55. Qb7+ {[%clk 0:00:09]}  Kg6 {[%clk 0:00:13]} 56. Qc6+ {[%clk 0:00:08]}  Kf5 {[%clk 0:00:09]} 57. Qd7+ {[%clk 0:00:07]}  Kg6 {[%clk 0:00:09]} 58. Qe6+ {[%clk 0:00:07]}  Kh7 {[%clk 0:00:08]} 59. h5 {[%clk 0:00:07]}  Qa8+ {[%clk 0:00:08]} 60. Kg1 {[%clk 0:00:05]}  Qa1+ {[%clk 0:00:06]} 61. Kh2 {[%clk 0:00:06]}  Qb2 {[%clk 0:00:06]} 62. Qf5+ {[%clk 0:00:06]}  Kh8 {[%clk 0:00:07]} 63. e6 {[%clk 0:00:06]}  Qe2 {[%clk 0:00:07]} 64. Qf8+ {[%clk 0:00:05]}  Kh7 {[%clk 0:00:07]} 65. e7 {[%clk 0:00:06]}  Qxh5+ {[%clk 0:00:06]} 66. Kg2 {[%clk 0:00:05]}  Qd5+ {[%clk 0:00:06]} 67. f3 {[%clk 0:00:05]}  Qd2+ {[%clk 0:00:05]} 68. Kh3 {[%clk 0:00:05]}  Qd7+ {[%clk 0:00:05]} 69. g4 {[%clk 0:00:05]}  Qd1 {[%clk 0:00:05]} 70. Qf5+ {[%clk 0:00:05]}  g6 {[%clk 0:00:06]} 71. Qf7+ {[%clk 0:00:05]}  Kh8 {[%clk 0:00:06]} 72. e8=Q# {[%clk 0:00:05]} 1-0


[Site "https://www.chess.com"]

[Event "Titled Tuesday Blitz September 27 Early 2022"]
[White "Pham, Khoi"]
[Black "Niekras, Dawid"]
[WhiteFideId "1054988"]
[BlackFideId "1160451"]
[WhiteElo "2443"]
[BlackElo "2296"]
[Result "1-0"]
[Round "08"]
[TimeControl "180+1"]
[Date "2022.09.27"]
[WhiteClock "0:00:38"]
[BlackClock "0:00:01"]

1. d4 {[%clk 0:03:00]}  Nf6 {[%clk 0:03:00]} 2. c3 {[%clk 0:03:00]}  g6 {[%clk 0:02:59]} 3. Nd2 {[%clk 0:03:00]}  Bg7 {[%clk 0:02:53]} 4. e4 {[%clk 0:03:00]}  d6 {[%clk 0:02:54]} 5. Bd3 {[%clk 0:02:59]}  O-O {[%clk 0:02:54]} 6. Ngf3 {[%clk 0:03:00]}  Qe8 {[%clk 0:02:46]} 7. O-O {[%clk 0:03:01]}  e5 {[%clk 0:02:46]} 8. h3 {[%clk 0:02:59]}  Nbd7 {[%clk 0:02:45]} 9. Re1 {[%clk 0:02:59]}  Nh5 {[%clk 0:02:32]} 10. Nc4 {[%clk 0:02:55]}  Nb6 {[%clk 0:02:22]} 11. Bd2 {[%clk 0:02:31]}  Be6 {[%clk 0:02:18]} 12. Ne3 {[%clk 0:02:27]}  Nf4 {[%clk 0:02:17]} 13. Bc2 {[%clk 0:02:27]}  Qe7 {[%clk 0:01:59]} 14. Nf1 {[%clk 0:02:19]}  Qf6 {[%clk 0:01:53]} 15. N1h2 {[%clk 0:02:07]}  h5 {[%clk 0:01:46]} 16. a4 {[%clk 0:01:52]}  a5 {[%clk 0:01:46]} 17. Be3 {[%clk 0:01:48]}  g5 {[%clk 0:01:31]} 18. Nd2 {[%clk 0:01:36]}  Qg6 {[%clk 0:01:21]} 19. Ndf1 {[%clk 0:01:24]}  f5 {[%clk 0:00:52]} 20. Ng3 {[%clk 0:01:20]}  fxe4 {[%clk 0:00:43]} 21. Bxe4 {[%clk 0:01:21]}  Qf7 {[%clk 0:00:39]} 22. Bxb7 {[%clk 0:01:13]}  Rab8 {[%clk 0:00:32]} 23. Bf3 {[%clk 0:01:11]}  g4 {[%clk 0:00:18]} 24. hxg4 {[%clk 0:01:10]}  h4 {[%clk 0:00:13]} 25. Nh5 {[%clk 0:01:06]}  Nc4 {[%clk 0:00:09]} 26. Bxf4 {[%clk 0:01:03]}  exf4 {[%clk 0:00:09]} 27. b3 {[%clk 0:00:54]}  Nb6 {[%clk 0:00:07]} 28. c4 {[%clk 0:00:53]}  Bh8 {[%clk 0:00:04]} 29. Qd3 {[%clk 0:00:44]}  Bd7 {[%clk 0:00:03]} 30. Be4 {[%clk 0:00:38]}  Rbe8 {[%clk 0:00:03]} 31. Bg6 {[%clk 0:00:37]}  Rxe1+ {[%clk 0:00:01]} 32. Rxe1 {[%clk 0:00:38]} 1-0


[Site "https://www.chess.com"]

[Event "Titled Tuesday Blitz September 27 Early 2022"]
[White "Ribeiro, Matheus Mendes Domingues"]
[Black "Domingo Nunez, Ruben"]
[WhiteFideId "324226923"]
[BlackFideId "22245570"]
[WhiteElo "2047"]
[BlackElo "2406"]
[Result "0-1"]
[Round "08"]
[TimeControl "180+1"]
[Date "2022.09.27"]
[WhiteClock "0:00:14"]
[BlackClock "0:00:14"]

1. c4 {[%clk 0:03:00]}  b6 {[%clk 0:02:54]} 2. Nf3 {[%clk 0:03:01]}  Bb7 {[%clk 0:02:55]} 3. g3 {[%clk 0:03:01]}  g6 {[%clk 0:02:54]} 4. Bg2 {[%clk 0:03:01]}  Bg7 {[%clk 0:02:55]} 5. O-O {[%clk 0:03:01]}  Nf6 {[%clk 0:02:56]} 6. Nc3 {[%clk 0:03:01]}  O-O {[%clk 0:02:56]} 7. d4 {[%clk 0:03:01]}  Ne4 {[%clk 0:02:57]} 8. Qd3 {[%clk 0:02:58]}  Nxc3 {[%clk 0:02:56]} 9. bxc3 {[%clk 0:02:59]}  Nc6 {[%clk 0:02:54]} 10. e4 {[%clk 0:02:53]}  Ba6 {[%clk 0:02:53]} 11. Bf4 {[%clk 0:02:42]}  Rc8 {[%clk 0:02:52]} 12. Nd2 {[%clk 0:02:33]}  e5 {[%clk 0:02:51]} 13. Be3 {[%clk 0:02:30]}  Qe7 {[%clk 0:02:42]} 14. Nb3 {[%clk 0:02:28]}  Qa3 {[%clk 0:02:40]} 15. Rfb1 {[%clk 0:02:12]}  Rfe8 {[%clk 0:01:41]} 16. d5 {[%clk 0:02:02]}  Nd8 {[%clk 0:01:40]} 17. Bf1 {[%clk 0:01:57]}  Nb7 {[%clk 0:01:40]} 18. Qd2 {[%clk 0:01:49]}  Qa4 {[%clk 0:01:35]} 19. Qd3 {[%clk 0:01:36]}  c6 {[%clk 0:01:28]} 20. dxc6 {[%clk 0:01:32]}  dxc6 {[%clk 0:01:19]} 21. Qd7 {[%clk 0:01:32]}  Rcd8 {[%clk 0:01:08]} 22. Qg4 {[%clk 0:01:03]}  Bxc4 {[%clk 0:01:05]} 23. Bxc4 {[%clk 0:00:57]}  Qxc4 {[%clk 0:01:06]} 24. Rd1 {[%clk 0:00:58]}  Nd6 {[%clk 0:00:35]} 25. f3 {[%clk 0:00:39]}  Qxc3 {[%clk 0:00:33]} 26. Bf2 {[%clk 0:00:40]}  h5 {[%clk 0:00:32]} 27. Qg5 {[%clk 0:00:37]}  Qxf3 {[%clk 0:00:32]} 28. Nd2 {[%clk 0:00:30]}  Qe2 {[%clk 0:00:31]} 29. Re1 {[%clk 0:00:26]}  Qd3 {[%clk 0:00:26]} 30. Rad1 {[%clk 0:00:26]}  Qc2 {[%clk 0:00:21]} 31. Nf3 {[%clk 0:00:21]}  Kh7 {[%clk 0:00:15]} 32. g4 {[%clk 0:00:17]}  Nxe4 {[%clk 0:00:11]} 33. Rxd8 {[%clk 0:00:13]}  Qxf2+ {[%clk 0:00:11]} 34. Kh1 {[%clk 0:00:12]}  Qxf3+ {[%clk 0:00:12]} 35. Kg1 {[%clk 0:00:13]}  Qf2+ {[%clk 0:00:12]} 36. Kh1 {[%clk 0:00:13]}  Qxe1+ {[%clk 0:00:13]} 37. Kg2 {[%clk 0:00:13]}  Qf2+ {[%clk 0:00:13]} 38. Kh1 {[%clk 0:00:14]}  Qf1# {[%clk 0:00:14]} 0-1


[Site "https://www.chess.com"]

[Event "Titled Tuesday Blitz September 27 Early 2022"]
[White "Rosen, Eric"]
[Black "Avazkhonov, Alikhon"]
[WhiteFideId "2032562"]
[BlackFideId "14208504"]
[WhiteElo "2362"]
[BlackElo "1739"]
[Result "0-1"]
[Round "08"]
[TimeControl "180+1"]
[Date "2022.09.27"]
[WhiteClock "0:00:03"]
[BlackClock "0:00:44"]

1. d4 {[%clk 0:03:00]}  Nf6 {[%clk 0:02:56]} 2. Bf4 {[%clk 0:02:59]}  d5 {[%clk 0:02:55]} 3. e3 {[%clk 0:02:59]}  e6 {[%clk 0:02:55]} 4. Nf3 {[%clk 0:02:59]}  Bd6 {[%clk 0:02:56]} 5. Ne5 {[%clk 0:02:59]}  O-O {[%clk 0:02:55]} 6. Nd2 {[%clk 0:02:59]}  c5 {[%clk 0:02:54]} 7. c3 {[%clk 0:02:59]}  b6 {[%clk 0:02:54]} 8. h4 {[%clk 0:02:59]}  Bb7 {[%clk 0:02:53]} 9. Bd3 {[%clk 0:02:57]}  Nc6 {[%clk 0:02:52]} 10. h5 {[%clk 0:02:52]}  Qc7 {[%clk 0:02:38]} 11. Nxc6 {[%clk 0:02:43]}  Bxc6 {[%clk 0:02:39]} 12. Qf3 {[%clk 0:02:10]}  e5 {[%clk 0:02:25]} 13. dxe5 {[%clk 0:02:04]}  Bxe5 {[%clk 0:02:26]} 14. Bxe5 {[%clk 0:01:42]}  Qxe5 {[%clk 0:02:27]} 15. h6 {[%clk 0:01:43]}  g6 {[%clk 0:02:24]} 16. O-O-O {[%clk 0:01:41]}  Ne4 {[%clk 0:02:23]} 17. Qe2 {[%clk 0:01:28]}  Nxd2 {[%clk 0:01:59]} 18. Rxd2 {[%clk 0:01:26]}  Rab8 {[%clk 0:01:55]} 19. Bb5 {[%clk 0:01:21]}  Bb7 {[%clk 0:01:43]} 20. f4 {[%clk 0:00:41]}  Qe4 {[%clk 0:01:38]} 21. Re1 {[%clk 0:00:38]}  a6 {[%clk 0:01:34]} 22. Bd3 {[%clk 0:00:35]}  Qe7 {[%clk 0:01:33]} 23. g4 {[%clk 0:00:33]}  Rfe8 {[%clk 0:01:23]} 24. g5 {[%clk 0:00:27]}  b5 {[%clk 0:01:20]} 25. Bc2 {[%clk 0:00:25]}  Rbd8 {[%clk 0:01:19]} 26. Qf2 {[%clk 0:00:08]}  d4 {[%clk 0:01:03]} 27. cxd4 {[%clk 0:00:08]}  cxd4 {[%clk 0:01:04]} 28. e4 {[%clk 0:00:08]}  Qb4 {[%clk 0:00:55]} 29. Kb1 {[%clk 0:00:04]}  d3 {[%clk 0:00:54]} 30. Bb3 {[%clk 0:00:03]}  Bxe4 {[%clk 0:00:52]} 31. Red1 {[%clk 0:00:03]}  Bf5 {[%clk 0:00:46]} 32. Qb6 {[%clk 0:00:03]}  Rd6 {[%clk 0:00:44]} 0-1


[Site "https://www.chess.com"]

[Event "Titled Tuesday Blitz September 27 Early 2022"]
[White "Rustemov, Alexander"]
[Black "Le, Tuan Minh"]
[WhiteFideId "4119002"]
[BlackFideId "12401153"]
[WhiteElo "2829"]
[BlackElo "2530"]
[Result "1-0"]
[Round "08"]
[TimeControl "180+1"]
[Date "2022.09.27"]
[WhiteClock "0:00:09"]
[BlackClock "0:00:04"]

1. d4 {[%clk 0:03:00]}  d5 {[%clk 0:03:00]} 2. c4 {[%clk 0:03:01]}  c6 {[%clk 0:03:00]} 3. cxd5 {[%clk 0:03:01]}  cxd5 {[%clk 0:03:01]} 4. Nf3 {[%clk 0:03:01]}  Nf6 {[%clk 0:03:02]} 5. Nc3 {[%clk 0:03:01]}  Nc6 {[%clk 0:03:02]} 6. Bf4 {[%clk 0:03:02]}  a6 {[%clk 0:03:01]} 7. Rc1 {[%clk 0:03:02]}  e6 {[%clk 0:02:55]} 8. e3 {[%clk 0:03:00]}  Bd6 {[%clk 0:02:55]} 9. Bxd6 {[%clk 0:02:59]}  Qxd6 {[%clk 0:02:56]} 10. Bd3 {[%clk 0:02:59]}  Bd7 {[%clk 0:02:54]} 11. O-O {[%clk 0:02:58]}  O-O {[%clk 0:02:54]} 12. Na4 {[%clk 0:02:51]}  Nb4 {[%clk 0:02:52]} 13. Nc3 {[%clk 0:02:43]}  Rac8 {[%clk 0:02:49]} 14. a3 {[%clk 0:02:43]}  Nxd3 {[%clk 0:02:47]} 15. Qxd3 {[%clk 0:02:43]}  Rc7 {[%clk 0:02:47]} 16. Rc2 {[%clk 0:02:42]}  Rfc8 {[%clk 0:02:47]} 17. Rfc1 {[%clk 0:02:42]}  Qb6 {[%clk 0:02:46]} 18. Ne5 {[%clk 0:02:38]}  Be8 {[%clk 0:02:24]} 19. f3 {[%clk 0:02:21]}  g6 {[%clk 0:02:19]} 20. Kf2 {[%clk 0:02:19]}  Qb3 {[%clk 0:02:10]} 21. Ke1 {[%clk 0:02:09]}  Bb5 {[%clk 0:01:39]} 22. Qd2 {[%clk 0:01:57]}  Kg7 {[%clk 0:01:33]} 23. Kd1 {[%clk 0:01:52]}  Bc4 {[%clk 0:01:23]} 24. Nb1 {[%clk 0:01:41]}  Bb5 {[%clk 0:01:00]} 25. Nc3 {[%clk 0:01:33]}  Be8 {[%clk 0:00:42]} 26. Nd3 {[%clk 0:01:29]}  Nd7 {[%clk 0:00:39]} 27. Nb1 {[%clk 0:01:17]}  Rc4 {[%clk 0:00:29]} 28. Ne1 {[%clk 0:01:06]}  Nb6 {[%clk 0:00:28]} 29. Ke2 {[%clk 0:01:06]}  Bb5 {[%clk 0:00:24]} 30. Kf2 {[%clk 0:01:05]}  Na4 {[%clk 0:00:25]} 31. Nc3 {[%clk 0:00:56]}  Nxc3 {[%clk 0:00:23]} 32. Rxc3 {[%clk 0:00:55]}  Rxc3 {[%clk 0:00:23]} 33. Rxc3 {[%clk 0:00:55]}  Rxc3 {[%clk 0:00:23]} 34. Qxc3 {[%clk 0:00:56]}  Qd1 {[%clk 0:00:20]} 35. Qc2 {[%clk 0:00:54]}  Qa1 {[%clk 0:00:21]} 36. h4 {[%clk 0:00:51]}  h5 {[%clk 0:00:21]} 37. Qd2 {[%clk 0:00:50]}  a5 {[%clk 0:00:20]} 38. Qc2 {[%clk 0:00:47]}  Bc4 {[%clk 0:00:18]} 39. Qd2 {[%clk 0:00:47]}  b5 {[%clk 0:00:18]} 40. f4 {[%clk 0:00:34]}  Qa2 {[%clk 0:00:18]} 41. Nf3 {[%clk 0:00:32]}  Qb1 {[%clk 0:00:18]} 42. Ne5 {[%clk 0:00:29]}  Qf1+ {[%clk 0:00:16]} 43. Kg3 {[%clk 0:00:29]}  a4 {[%clk 0:00:13]} 44. Nf3 {[%clk 0:00:28]}  Qb1 {[%clk 0:00:10]} 45. Qc3 {[%clk 0:00:25]}  Qf5 {[%clk 0:00:09]} 46. Kh2 {[%clk 0:00:25]}  Qg4 {[%clk 0:00:08]} 47. Qd2 {[%clk 0:00:23]}  Kg8 {[%clk 0:00:06]} 48. Qf2 {[%clk 0:00:22]}  Qf5 {[%clk 0:00:06]} 49. Ne5 {[%clk 0:00:22]}  Kg7 {[%clk 0:00:06]} 50. Qg3 {[%clk 0:00:22]}  Qe4 {[%clk 0:00:06]} 51. Qf2 {[%clk 0:00:20]}  Bb3 {[%clk 0:00:06]} 52. Qd2 {[%clk 0:00:19]}  Bc4 {[%clk 0:00:04]} 53. Nf3 {[%clk 0:00:19]}  Qb1 {[%clk 0:00:04]} 54. Ne5 {[%clk 0:00:19]}  Qa1 {[%clk 0:00:04]} 55. Qb4 {[%clk 0:00:18]}  Qb1 {[%clk 0:00:04]} 56. Qe7 {[%clk 0:00:18]}  Qf5 {[%clk 0:00:04]} 57. Kg3 {[%clk 0:00:17]}  Bb3 {[%clk 0:00:05]} 58. Nd7 {[%clk 0:00:17]}  Qg4+ {[%clk 0:00:04]} 59. Kf2 {[%clk 0:00:16]}  Qf5 {[%clk 0:00:02]} 60. Qf8+ {[%clk 0:00:16]}  Kh7 {[%clk 0:00:02]} 61. Qd8 {[%clk 0:00:14]}  Bc2 {[%clk 0:00:01]} 62. Nf6+ {[%clk 0:00:13]}  Kg7 {[%clk 0:00:01]} 63. Ne8+ {[%clk 0:00:13]}  Kh7 {[%clk 0:00:02]} 64. Qf6 {[%clk 0:00:13]}  Qxf6 {[%clk 0:00:01]} 65. Nxf6+ {[%clk 0:00:13]}  Kg7 {[%clk 0:00:02]} 66. Nd7 {[%clk 0:00:10]}  f6 {[%clk 0:00:03]} 67. Nc5 {[%clk 0:00:10]}  Kf7 {[%clk 0:00:03]} 68. Ke1 {[%clk 0:00:10]}  Ke7 {[%clk 0:00:03]} 69. Kd2 {[%clk 0:00:10]}  Be4 {[%clk 0:00:03]} 70. g3 {[%clk 0:00:10]}  Kd6 {[%clk 0:00:04]} 71. Kc3 {[%clk 0:00:11]}  Bg2 {[%clk 0:00:04]} 72. Kb4 {[%clk 0:00:11]}  Bf1 {[%clk 0:00:05]} 73. Ka5 {[%clk 0:00:10]}  e5 {[%clk 0:00:05]} 74. Kb6 {[%clk 0:00:09]}  exd4 {[%clk 0:00:05]} 75. exd4 {[%clk 0:00:09]}  Be2 {[%clk 0:00:05]} 76. Ka5 {[%clk 0:00:07]}  Bf1 {[%clk 0:00:05]} 77. Kb4 {[%clk 0:00:07]}  Be2 {[%clk 0:00:05]} 78. Kc3 {[%clk 0:00:08]}  Bg4 {[%clk 0:00:05]} 79. Kd3 {[%clk 0:00:08]}  Bf5+ {[%clk 0:00:06]} 80. Kc3 {[%clk 0:00:08]}  Bg4 {[%clk 0:00:06]} 81. Kd2 {[%clk 0:00:08]}  Ke7 {[%clk 0:00:03]} 82. Ke3 {[%clk 0:00:08]}  Kd6 {[%clk 0:00:03]} 83. Nd3 {[%clk 0:00:08]}  Bf5 {[%clk 0:00:03]} 84. Nb4 {[%clk 0:00:09]}  Be4 {[%clk 0:00:03]} 85. Na2 {[%clk 0:00:09]}  Kc6 {[%clk 0:00:04]} 86. Nc3 {[%clk 0:00:09]}  Bc2 {[%clk 0:00:04]} 87. Kf2 {[%clk 0:00:09]}  Bf5 {[%clk 0:00:03]} 88. Kf3 {[%clk 0:00:09]}  Bg4+ {[%clk 0:00:04]} 89. Ke3 {[%clk 0:00:09]}  Bf5 {[%clk 0:00:05]} 90. Kf3 {[%clk 0:00:10]}  Be6 {[%clk 0:00:05]} 91. Ke3 {[%clk 0:00:09]}  Kb6 {[%clk 0:00:05]} 92. Na2 {[%clk 0:00:09]}  Kc6 {[%clk 0:00:06]} 93. Nb4+ {[%clk 0:00:10]}  Kd6 {[%clk 0:00:06]} 94. Kf3 {[%clk 0:00:10]}  Bf5 {[%clk 0:00:07]} 95. Ke3 {[%clk 0:00:10]}  Bb1 {[%clk 0:00:07]} 96. Kf3 {[%clk 0:00:11]}  Ke6 {[%clk 0:00:08]} 97. Ke3 {[%clk 0:00:11]}  Bf5 {[%clk 0:00:06]} 98. Kf3 {[%clk 0:00:11]}  Bh3 {[%clk 0:00:07]} 99. Ke3 {[%clk 0:00:11]}  Bg2 {[%clk 0:00:07]} 100. Kf2 {[%clk 0:00:12]}  Be4 {[%clk 0:00:08]} 101. Ke3 {[%clk 0:00:12]}  Kf5 {[%clk 0:00:08]} 102. Kf2 {[%clk 0:00:12]}  Bb1 {[%clk 0:00:07]} 103. Nxd5 {[%clk 0:00:10]}  Ba2 {[%clk 0:00:05]} 104. Nc3 {[%clk 0:00:10]}  Bc4 {[%clk 0:00:05]} 105. d5 {[%clk 0:00:10]}  g5 {[%clk 0:00:04]} 106. fxg5 {[%clk 0:00:09]}  fxg5 {[%clk 0:00:05]} 107. hxg5 {[%clk 0:00:09]}  Kxg5 {[%clk 0:00:06]} 108. Ke3 {[%clk 0:00:09]}  Kg4 {[%clk 0:00:05]} 109. d6 {[%clk 0:00:09]}  Be6 {[%clk 0:00:06]} 110. Ne4 {[%clk 0:00:09]}  Bc8 {[%clk 0:00:05]} 111. Nf6+ {[%clk 0:00:09]}  Kxg3 {[%clk 0:00:04]} 112. Nxh5+ {[%clk 0:00:09]}  Kg2 {[%clk 0:00:04]} 113. Nf6 {[%clk 0:00:09]}  Kf1 {[%clk 0:00:04]} 114. Kd2 {[%clk 0:00:09]}  Kf2 {[%clk 0:00:03]} 115. d7 {[%clk 0:00:09]}  Bxd7 {[%clk 0:00:04]} 116. Nxd7 {[%clk 0:00:09]} 1-0


[Site "https://www.chess.com"]

[Event "Titled Tuesday Blitz September 27 Early 2022"]
[White "Sai Han Thiha"]
[Black "Dushyant Sharma"]
[WhiteFideId "13012290"]
[BlackFideId "25065130"]
[WhiteElo "1791"]
[BlackElo "2144"]
[Result "1-0"]
[Round "08"]
[TimeControl "180+1"]
[Date "2022.09.27"]
[WhiteClock "0:00:19"]
[BlackClock "0:00:03"]

1. d4 {[%clk 0:03:00]}  d5 {[%clk 0:02:59]} 2. c4 {[%clk 0:03:01]}  e6 {[%clk 0:02:59]} 3. Nc3 {[%clk 0:03:01]}  c6 {[%clk 0:02:59]} 4. Nf3 {[%clk 0:03:01]}  f5 {[%clk 0:02:57]} 5. Bf4 {[%clk 0:03:00]}  Bd6 {[%clk 0:02:56]} 6. e3 {[%clk 0:03:00]}  Nf6 {[%clk 0:02:54]} 7. Bd3 {[%clk 0:03:01]}  O-O {[%clk 0:02:54]} 8. O-O {[%clk 0:03:01]}  Qc7 {[%clk 0:02:52]} 9. Ne2 {[%clk 0:02:53]}  Nbd7 {[%clk 0:02:49]} 10. Rc1 {[%clk 0:02:49]}  Ne4 {[%clk 0:02:48]} 11. b4 {[%clk 0:02:31]}  b6 {[%clk 0:02:32]} 12. b5 {[%clk 0:02:01]}  c5 {[%clk 0:02:18]} 13. cxd5 {[%clk 0:02:00]}  exd5 {[%clk 0:02:19]} 14. dxc5 {[%clk 0:01:45]}  Ndxc5 {[%clk 0:01:13]} 15. Bxe4 {[%clk 0:01:36]}  fxe4 {[%clk 0:01:06]} 16. Qxd5+ {[%clk 0:01:35]}  Be6 {[%clk 0:01:05]} 17. Qxd6 {[%clk 0:01:32]}  Qxd6 {[%clk 0:01:05]} 18. Bxd6 {[%clk 0:01:33]}  exf3 {[%clk 0:01:06]} 19. Nf4 {[%clk 0:01:23]}  fxg2 {[%clk 0:01:02]} 20. Rfd1 {[%clk 0:01:19]}  Rfe8 {[%clk 0:00:55]} 21. Bxc5 {[%clk 0:01:19]}  bxc5 {[%clk 0:00:55]} 22. Rxc5 {[%clk 0:01:11]}  Bxa2 {[%clk 0:00:50]} 23. Kxg2 {[%clk 0:01:10]}  Re7 {[%clk 0:00:36]} 24. Ra1 {[%clk 0:01:03]}  Bb3 {[%clk 0:00:27]} 25. b6 {[%clk 0:01:02]}  Rb7 {[%clk 0:00:27]} 26. Rb5 {[%clk 0:00:38]}  Bc4 {[%clk 0:00:13]} 27. Rb4 {[%clk 0:00:37]}  Bf7 {[%clk 0:00:14]} 28. Rxa7 {[%clk 0:00:35]}  Raxa7 {[%clk 0:00:12]} 29. bxa7 {[%clk 0:00:36]}  Rxa7 {[%clk 0:00:09]} 30. Rb8+ {[%clk 0:00:37]}  Be8 {[%clk 0:00:09]} 31. Rxe8+ {[%clk 0:00:38]}  Kf7 {[%clk 0:00:09]} 32. Re5 {[%clk 0:00:36]}  Kf6 {[%clk 0:00:09]} 33. Rb5 {[%clk 0:00:35]}  g5 {[%clk 0:00:10]} 34. Nh5+ {[%clk 0:00:33]}  Kg6 {[%clk 0:00:10]} 35. Ng3 {[%clk 0:00:34]}  h6 {[%clk 0:00:10]} 36. Rb6+ {[%clk 0:00:34]}  Kg7 {[%clk 0:00:10]} 37. Nf5+ {[%clk 0:00:34]}  Kf7 {[%clk 0:00:09]} 38. Nxh6+ {[%clk 0:00:34]}  Kg7 {[%clk 0:00:09]} 39. Nf5+ {[%clk 0:00:33]}  Kf7 {[%clk 0:00:09]} 40. Kg3 {[%clk 0:00:34]}  Ra4 {[%clk 0:00:10]} 41. f3 {[%clk 0:00:33]}  Ra1 {[%clk 0:00:09]} 42. Nd6+ {[%clk 0:00:32]}  Kg6 {[%clk 0:00:09]} 43. Ne4+ {[%clk 0:00:31]}  Kh5 {[%clk 0:00:09]} 44. Nf6+ {[%clk 0:00:29]}  Kg6 {[%clk 0:00:09]} 45. Ng4+ {[%clk 0:00:30]}  Kg7 {[%clk 0:00:08]} 46. Ne5 {[%clk 0:00:23]}  Ra5 {[%clk 0:00:06]} 47. f4 {[%clk 0:00:18]}  gxf4+ {[%clk 0:00:04]} 48. Kxf4 {[%clk 0:00:19]}  Ra1 {[%clk 0:00:03]} 49. e4 {[%clk 0:00:19]} 1-0


[Site "https://www.chess.com"]